bitfinex/quotes_ETHUSD_20251128
["timestamp","ask_amount","ask_price","bid_price","bid_amount"]
[1764294545273,15.70134804,3003.2,3003.1,0.001]
[1764294545570,14.20817976,3003.2,3003.1,0.001]
[1764294547204,15.37000105,3003.2,3003.1,0.001]
[1764294547359,14.50550302,3003.2,3003.1,0.001]
[1764294549489,13.80410302,3003.2,3003.1,0.001]
[1764294549668,12.61481,3003.2,3003.1,0.001]
[1764294549874,14.01510302,3003.2,3003.1,0.001]
[1764294550279,13.49510302,3003.2,3003.1,0.001]
[1764294550492,12.51681,3003.2,3003.1,0.9495]
[1764294550967,12.20738133,3003.2,3003.1,0.9495]
[1764294551166,12.51678569,3003.2,3003.1,0.9495]
[1764294551462,12.51678569,3003.2,3003.1,1.1409]
[1764294551669,13.40783594,3003.2,3003.1,1.1409]
[1764294552077,12.51678569,3003.2,3003.1,1.1409]
[1764294554897,12.11128169,3003.2,3003.1,1.1659]
[1764294555103,8.13950013,3003.2,3003.1,1.1659]
[1764294555285,8.00607185,3003.2,3003.1,1.1659]
[1764294555489,10.8212593,3003.2,3003.1,1.1659]
[1764294556000,11.54685341,3003.2,3003.1,1.1659]
[1764294556400,11.64685341,3003.2,3003.1,1.1659]
[1764294557781,11.54685341,3003.2,3003.1,1.1659]
[1764294558501,11.64685341,3003.2,3003.1,1.1659]
[1764294560115,7.50399847,3003.2,3003.1,1.1659]
[1764294562847,7.29299847,3003.2,3003.1,1.1659]
[1764294563022,7.50399847,3003.2,3003.1,1.1659]
[1764294563540,10.83378003,3003.2,3003.1,0.6675]
[1764294563741,11.26478003,3003.2,3003.1,1.1659]
[1764294564140,7.93499847,3003.2,3003.1,1.1659]
[1764294565031,11.26478003,3003.2,3003.1,1.1659]
[1764294566748,11.26462594,3003.2,3003.1,1.1659]
[1764294567948,11.26462594,3003.2,3003.1,0.4761]
[1764294568944,7.60384438,3003.2,3003.1,1.1555]
[1764294569111,7.50384438,3003.2,3003.1,1.1555]
[1764294570133,10.83362594,3003.2,3003.1,1.1555]
[1764294571226,10.83362594,3003.2,3003.1,0.4761]
[1764294571446,11.26462594,3003.2,3003.1,0.4761]
[1764294571647,11.26462594,3003.2,3003.1,0.9745]
[1764294573258,10.83362594,3003.2,3003.1,1.1555]
[1764294573438,11.26462594,3003.2,3003.1,1.1555]
[1764294573840,11.74132594,3003.2,3003.1,0.001]
[1764294574360,11.26462594,3003.2,3003.1,0.001]
[1764294574660,11.26462594,3003.2,3003.1,0.4587]
[1764294575658,13.17212316,3003.2,3003.1,0.001]
[1764294575862,13.67052316,3003.2,3003.1,0.001]
[1764294579771,13.35622316,3003.2,3003.1,0.001]
[1764294580074,14.56157341,3003.2,3003.1,0.001]
[1764294582170,14.24727341,3003.2,3003.1,0.001]
[1764294583378,14.56157341,3003.2,3003.1,0.001]
[1764294584079,14.24727341,3003.2,3003.1,0.001]
[1764294584957,14.56157341,3003.2,3003.1,0.001]
[1764294586288,13.67052316,3003.2,3003.1,0.001]
[1764294587386,13.35622316,3003.2,3003.1,0.001]
[1764294589260,12.04471916,3003.2,3003.1,1.1481]
[1764294589458,11.97731916,3003.2,3003.1,1.1481]
[1764294589785,11.54631916,3003.2,3003.1,1.1481]
[1764294590160,11.64631916,3003.2,3003.1,1.1481]
[1764294591188,11.54631916,3003.2,3003.1,0.4702]
[1764294591485,12.76511916,3003.2,3003.1,0.001]
[1764294592274,13.17062316,3003.2,3003.1,0.001]
[1764294592611,13.30405323,3003.2,3003.1,0.001]
[1764294593306,14.19510348,3003.2,3003.1,0.001]
[1764294599582,13.30405323,3003.2,3003.1,0.001]
[1764294601499,12.82955323,3003.2,3003.1,0.001]
[1764294601699,12.51625323,3003.2,3003.1,0.4702]
[1764294602018,13.2748595,3003.2,3003.1,0.959]
[1764294602182,13.2748595,3003.2,3003.1,1.1481]
[1764294602803,12.5383555,3003.2,3003.1,1.1481]
[1764294603011,8.0055376,3003.2,3003.1,1.1481]
[1764294603308,8.2165376,3003.2,3003.1,1.1481]
[1764294603904,11.54631916,3003.2,3003.1,1.1481]
[1764294604094,11.97731916,3003.2,3003.1,0.4702]
[1764294604294,11.97731916,3003.2,3003.1,0.959]
[1764294604987,11.97731916,3003.2,3003.1,1.1481]
[1764294605299,8.2165376,3003.2,3003.1,1.1481]
[1764294605607,11.54631916,3003.2,3003.1,1.1481]
[1764294605911,11.97731916,3003.2,3003.1,1.1481]
[1764294606300,11.64631916,3003.2,3003.1,0.4702]
[1764294606608,11.97731916,3003.2,3003.1,0.4702]
[1764294607183,12.30271916,3003.2,3003.1,0.001]
[1764294607386,12.77731916,3003.2,3003.1,0.001]
[1764294608503,13.6693555,3003.2,3003.1,0.001]
[1764294608707,12.77731916,3003.2,3003.1,0.001]
[1764294609018,13.6693081,3003.2,3003.1,0.001]
[1764294610234,14.0748121,3003.2,3003.1,0.001]
[1764294610515,13.18282316,3003.2,3003.1,0.001]
[1764294611794,12.05182316,3003.2,3003.1,0.4905]
[1764294612095,13.27430173,3003.2,3003.1,0.4905]
[1764294614622,8.0055376,3003.2,3003.1,1.142]
[1764294614841,7.27994349,3003.2,3003.1,1.142]
[1764294615021,6.56725027,3003.2,3003.1,4.47189244]
[1764294615320,6.77825027,3003.2,3003.1,1.142]
[1764294615521,6.77825027,3003.2,3003.1,2.01336823]
[1764294619024,6.77825027,3003.2,3003.1,1.142]
[1764294619226,10.10803183,3003.2,3003.1,1.142]
[1764294622233,6.77825027,3003.2,3003.1,1.142]
[1764294622430,10.10803183,3003.2,3003.1,1.142]
[1764294622816,6.77825027,3003.2,3003.1,1.142]
[1764294623016,10.10794168,3003.2,3003.1,1.142]
[1764294623835,6.77816012,3003.2,3003.1,1.142]
[1764294625640,10.10794168,3003.2,3003.1,1.142]
[1764294626934,10.10794168,3003.2,3003.1,0.001]
[1764294627341,10.10794168,3003.2,3003.1,0.4748]
[1764294627542,6.77816012,3003.2,3003.1,0.9276]
[1764294628114,10.10794168,3003.2,3003.1,1.1263]
[1764294629537,6.77816012,3003.2,3003.1,1.1263]
[1764294630333,6.56716012,3003.2,3003.1,1.1263]
[1764294630533,6.56716012,3003.2,3003.1,5.36691226]
[1764294630739,6.77816012,3003.2,3003.1,5.90370349]
[1764294631241,6.56716012,3003.2,3003.1,4.99298367]
[1764294632327,6.56716012,3003.2,3003.1,9.23359593]
[1764294633441,6.56716012,3003.2,3003.1,4.99298367]
[1764294636044,6.56716012,3003.2,3003.1,1.66309123]
[1764294636344,6.258,3003.2,3003.1,1.1263]
[1764294637214,6.258,3003.2,3003.1,0.4748]
[1764294637416,9.58778156,3003.2,3003.1,0.4748]
[1764294637745,9.92088156,3003.2,3003.1,0.001]
[1764294637939,10.22990404,3003.2,3003.1,0.001]
[1764294638246,10.95549043,3003.2,3003.1,0.001]
[1764294638446,10.62239043,3003.2,3003.1,0.001]
[1764294638746,10.62239043,3003.2,3003.1,0.4748]
[1764294641859,7.29260887,3003.2,3003.1,1.1141]
[1764294643963,10.62239043,3003.2,3003.1,1.1141]
[1764294644347,12.21825631,3003.2,3003.1,0.001]
[1764294644893,12.07005631,3003.2,3003.1,0.001]
[1764294645154,11.73905631,3003.2,3003.1,0.001]
[1764294645921,12.07005631,3003.2,3003.1,0.001]
[1764294646352,11.73905631,3003.2,3003.1,0.001]
[1764294647251,12.07005631,3003.2,3003.1,0.001]
[1764294647549,12.21825631,3003.2,3003.1,0.001]
[1764294648452,12.54925631,3003.2,3003.1,0.001]
[1764294650069,16.78986857,3003.2,3003.1,0.001]
[1764294651263,17.19537257,3003.2,3003.1,0.001]
[1764294651853,18.08685114,3003.2,3003.1,0.001]
[1764294652072,17.19537257,3003.2,3003.1,0.001]
[1764294652274,18.08576549,3003.2,3003.1,0.001]
[1764294652745,17.19537257,3003.2,3003.1,0.001]
[1764294654262,29.43968359,3003.2,3003.1,0.001]
[1764294655167,28.25039057,3003.2,3003.1,0.001]
[1764294655469,32.31833057,3003.2,3003.1,0.001]
[1764294655965,31.08477657,3003.2,3003.1,0.001]
[1764294656169,29.87277657,3003.2,3003.1,0.001]
[1764294656372,31.07660757,3003.2,3003.1,0.001]
[1764294656561,17.19537257,3003.2,3003.1,0.001]
[1764294657273,18.08425292,3003.2,3003.1,0.001]
[1764294658172,17.29537257,3003.2,3003.1,0.001]
[1764294658544,34.98896454,3003.2,3003.1,0.001]
[1764294658952,29.5999184,3003.2,3003.1,0.001]
[1764294659272,15.98626031,3003.2,3003.1,0.001]
[1764294659680,21.73474831,3003.2,3003.1,0.001]
[1764294660462,21.86819262,3003.2,3003.1,0.001]
[1764294660772,14.27749764,3003.2,3003.1,0.001]
[1764294660962,18.65705964,3003.2,3003.1,0.001]
[1764294661162,14.18732076,3003.2,3003.1,0.001]
[1764294662179,13.97632076,3003.2,3003.1,0.001]
[1764294662480,12.82000462,3003.2,3003.1,0.001]
[1764294663066,13.29920462,3003.2,3003.1,0.001]
[1764294664668,14.18732076,3003.2,3003.1,0.001]
[1764294664860,13.29920462,3003.2,3003.1,0.001]
[1764294667853,8.16772184,3003.2,3003.1,0.5883]
[1764294668054,10.8206622,3003.2,3003.1,1.0464]
[1764294668354,10.10779632,3003.2,3003.1,1.0464]
[1764294668759,10.83339043,3003.2,3003.1,1.0464]
[1764294671190,10.62239043,3003.2,3003.1,1.0464]
[1764294671392,10.83339043,3003.2,3003.1,1.0464]
[1764294672469,7.50360887,3003.2,3003.1,1.0464]
[1764294672799,10.83339043,3003.2,3003.1,1.0464]
[1764294673173,7.50360887,3003.2,3003.1,1.0464]
[1764294673497,10.83339043,3003.2,3003.1,1.0464]
[1764294675277,10.93339043,3003.2,3003.1,1.0464]
[1764294675970,10.83339043,3003.2,3003.1,1.0464]
[1764294679698,6.77801476,3003.2,3003.1,1.0464]
[1764294680882,6.77801476,3003.2,3003.1,1.48415089]
[1764294681397,6.77801476,3003.2,3003.1,1.02605089]
[1764294681582,10.53879632,3003.2,3003.1,0.4683]
[1764294681781,10.53879632,3003.2,3003.1,0.4612]
[1764294682367,7.20901476,3003.2,3003.1,0.9542]
[1764294682797,6.77801476,3003.2,3003.1,0.9542]
[1764294685704,10.10779632,3003.2,3003.1,0.4612]
[1764294686229,10.53879632,3003.2,3003.1,0.4612]
[1764294686412,10.10779632,3003.2,3003.1,0.001]
[1764294686600,10.41229632,3003.2,3003.1,0.001]
[1764294686802,12.05489043,3003.2,3003.1,0.001]
[1764294687797,12.76492504,3003.2,3003.1,0.001]
[1764294688116,13.17042904,3003.2,3003.1,0.001]
[1764294691298,13.30386623,3003.2,3003.1,0.001]
[1764294696245,14.19170743,3003.2,3003.1,0.001]
[1764294698242,13.30386623,3003.2,3003.1,0.001]
[1764294701910,12.51336623,3003.2,3003.1,0.001]
[1764294702117,12.81796623,3003.2,3003.1,0.001]
[1764294702515,13.30376623,3003.2,3003.1,0.001]
[1764294705014,12.81796623,3003.2,3003.1,0.001]
[1764294707479,13.30376623,3003.2,3003.1,0.001]
[1764294710249,14.19160743,3003.2,3003.1,0.001]
[1764294710956,6.98259411,3003.1,3003.0,0.001]
[1764294711132,13.06081771,3003.1,3003.0,0.001]
[1764294711451,16.79621415,3003.1,3003.0,0.001]
[1764294711631,48.11896038,3003.1,3003.0,0.001]
[1764294712058,47.02966736,3003.1,3003.0,0.001]
[1764294712256,15.14900713,3003.1,3003.0,0.001]
[1764294712598,12.81709313,3003.1,3003.0,0.001]
[1764294713068,13.30289313,3003.1,3003.0,0.001]
[1764294715185,14.48788318,3003.1,3003.0,0.001]
[1764294716587,13.30289313,3003.1,3003.0,0.001]
[1764294719693,12.81709313,3003.1,3003.0,0.001]
[1764294720002,13.30289313,3003.1,3003.0,0.001]
[1764294721905,12.81709313,3003.1,3003.0,0.001]
[1764294722106,11.46498913,3003.1,3003.0,0.4931]
[1764294722307,11.46498913,3003.1,3003.0,0.973]
[1764294722308,11.64253592,3003.1,3003.0,0.973]
[1764294722509,12.04803992,3003.1,3003.0,0.973]
[1764294722807,12.37903992,3003.1,3003.0,0.973]
[1764294723715,12.16803992,3003.1,3003.0,0.973]
[1764294723903,12.37903992,3003.1,3003.0,0.973]
[1764294724722,12.68363992,3003.1,3003.0,0.001]
[1764294724887,13.16943992,3003.1,3003.0,0.001]
[1764294725814,14.3552769,3003.1,3003.0,0.001]
[1764294726017,13.16943992,3003.1,3003.0,0.001]
[1764294726515,13.86948512,3003.1,3003.0,0.001]
[1764294726916,14.35528512,3003.1,3003.0,0.001]
[1764294728130,14.35728512,3003.1,3003.0,0.001]
[1764294732528,13.56688512,3003.1,3003.0,0.4595]
[1764294732731,13.56688512,3003.1,3003.0,0.917]
[1764294733025,13.56688512,3003.1,3003.0,0.4595]
[1764294733207,13.90608512,3003.1,3003.0,0.001]
[1764294734929,13.56688512,3003.1,3003.0,0.001]
[1764294735314,13.56688512,3003.1,3003.0,0.4595]
[1764294735510,5.53678701,3003.1,3003.0,0.917]
[1764294735706,5.59272038,3003.1,3003.0,0.917]
[1764294735939,6.31831449,3003.1,3003.0,0.917]
[1764294736508,5.42901183,3003.1,3003.0,0.917]
[1764294736714,5.76001183,3003.1,3003.0,0.917]
[1764294737030,1.02104937,3003.1,3003.0,0.917]
[1764294737230,0.31101476,3003.1,3003.0,4.24700333]
[1764294737428,0.52201476,3003.1,3003.0,5.09588572]
[1764294738359,0.52201476,3003.1,3003.0,1.76588239]
[1764294739020,0.52201476,3003.1,3003.0,5.09588572]
[1764294739459,0.52201476,3003.1,3003.0,1.76588239]
[1764294739630,0.52201476,3003.1,3003.0,0.917]
[1764294740132,0.52201476,3003.1,3003.0,4.24700333]
[1764294740355,0.52201476,3003.1,3003.0,0.917]
[1764294740647,0.52201476,3003.1,3003.0,4.24700333]
[1764294741147,0.52201476,3003.1,3003.0,0.917]
[1764294741343,0.52201476,3003.1,3003.0,1.76590289]
[1764294741919,0.52201476,3003.1,3003.0,5.09590622]
[1764294743460,0.52201476,3003.1,3003.0,1.76590289]
[1764294743669,0.52201476,3003.1,3003.0,5.09590622]
[1764294745146,0.52201476,3003.1,3003.0,1.76590289]
[1764294745746,0.52201476,3003.1,3003.0,5.09590622]
[1764294746336,0.52201476,3003.1,3003.0,1.76590289]
[1764294746538,0.52201476,3003.1,3003.0,0.917]
[1764294747086,3.8519072,3003.1,3003.0,0.4595]
[1764294747247,16.70212593,3003.1,3003.0,0.001]
[1764294747441,17.41075099,3003.1,3003.0,0.001]
[1764294749493,32.73278199,3003.1,3003.0,0.001]
[1764294749841,33.91862719,3003.1,3003.0,0.001]
[1764294750037,34.01862719,3003.1,3003.0,0.001]
[1764294750255,48.48697219,3003.1,3003.0,0.001]
[1764294750457,50.55524981,3003.1,3003.0,0.001]
[1764294750694,45.13652519,3003.1,3003.0,0.001]
[1764294751094,49.05599864,3003.1,3003.0,0.001]
[1764294751280,39.23347659,3002.5,3002.4,0.001]
[1764294751486,41.97669457,3002.5,3002.4,0.001]
[1764294751800,20.40629541,3002.5,3002.4,0.001]
[1764294752601,24.09623841,3002.5,3002.4,0.001]
[1764294752904,6.69729579,3002.5,3002.4,0.001]
[1764294753066,6.90829579,3002.5,3002.4,0.001]
[1764294753464,19.82002097,3002.5,3002.4,0.001]
[1764294753763,32.50831197,3002.5,3002.4,0.001]
[1764294753991,31.62359779,3002.5,3002.4,0.001]
[1764294754382,32.60759371,3002.5,3002.4,0.001]
[1764294754583,32.60759371,3002.5,3001.2,0.4085]
[1764294754584,0.431,3001.3,3001.2,0.4085]
[1764294754888,0.52001476,3001.3,3001.2,0.4085]
[1764294755095,0.52001476,3001.3,3001.2,0.867]
[1764294756296,3.85190427,3001.3,3001.2,0.4585]
[1764294756498,4.67749838,3001.3,3001.2,0.4585]
[1764294756697,10.93449838,3001.3,3001.2,0.4585]
[1764294757396,11.26549838,3001.3,3001.2,0.4585]
[1764294757584,10.93449838,3001.3,3001.2,0.4585]
[1764294757790,11.26549838,3001.3,3001.2,0.4585]
[1764294757982,10.93449838,3001.3,3001.2,0.4585]
[1764294758175,11.26549838,3001.3,3001.2,0.4585]
[1764294758382,10.93449838,3001.3,3001.2,0.4585]
[1764294758601,11.26549838,3001.3,3001.2,0.4585]
[1764294758801,11.26549838,3001.3,3000.7,0.1924]
[1764294758802,0.72559411,3001.2,3000.7,0.1924]
[1764294759010,0.431,3000.8,3000.7,0.1924]
[1764294759170,0.642,3000.8,3000.7,0.6509]
[1764294759368,5.00905355,3000.8,3000.7,0.4585]
[1764294759570,5.00905355,3000.8,3000.0,4.43092062]
[1764294759571,0.431,3000.5,3000.3,0.1902]
[1764294759802,0.431,3000.2,3000.0,0.1901]
[1764294759969,0.431,3000.1,3000.0,0.1901]
[1764294760173,1.46278195,3000.1,3000.0,0.1901]
[1764294760373,1.46278195,3000.1,2999.8,0.4575]
[1764294760374,1.15659411,3000.1,2999.8,0.6411]
[1764294760575,0.1,2999.9,2999.8,0.6411]
[1764294760782,0.1,2999.9,2999.8,0.1836]
[1764294760989,0.1,2999.9,2999.8,0.6445]
[1764294761302,0.311,3000.0,2999.8,0.6445]
[1764294761472,0.311,3000.0,2999.9,0.9201]
[1764294761801,0.211,3000.0,2999.9,0.9201]
[1764294761970,0.211,3000.0,2999.9,0.4609]
[1764294762167,9.59011644,3000.2,2999.9,5.16092062]
[1764294762168,6.257,3000.2,2999.9,5.16092062]
[1764294762370,6.257,3000.2,3000.1,0.6445]
[1764294762900,6.257,3000.2,3000.1,1.1037]
[1764294762901,6.468,3000.2,3000.1,1.1037]
[1764294763090,6.257,3000.2,3000.1,1.1037]
[1764294763289,6.468,3000.2,3000.1,1.1037]
[1764294763889,6.468,3000.2,3000.1,4.43692222]
[1764294764082,6.468,3000.2,3000.1,1.1037]
[1764294764267,6.468,3000.2,3000.1,5.30470361]
[1764294764692,6.468,3000.2,3000.1,1.97148139]
[1764294765709,6.468,3000.2,3000.1,5.30470361]
[1764294765906,6.468,3000.2,3000.1,1.1037]
[1764294766110,6.899,3000.2,3000.1,0.6445]
[1764294766310,0.211,3000.3,3000.1,1.1037]
[1764294766483,0.1,3000.7,3000.3,0.4609]
[1764294766808,0.1,3000.4,3000.1,0.1836]
[1764294766992,0.1,3000.4,2999.9,0.4602]
[1764294767171,0.1,3000.1,2999.9,0.4602]
[1764294767379,0.211,3000.0,2999.9,0.4602]
[1764294767706,0.211,3000.0,2999.9,0.001]
[1764294767905,0.211,3000.0,2999.9,0.9211]
[1764294768493,3.33317617,3000.2,2999.9,5.16192062]
[1764294768494,0.72559411,3000.2,2999.9,5.16192062]
[1764294768801,0.72559411,3000.2,3000.1,0.6445]
[1764294769009,0.211,3000.2,3000.1,0.6445]
[1764294769303,0.211,3000.2,3000.1,1.1037]
[1764294770906,0.64209603,3000.2,3000.1,0.4609]
[1764294771095,1.13819603,3000.2,2999.9,0.001]
[1764294771295,0.74209603,3000.2,3000.1,0.4609]
[1764294771490,0.74209603,3000.2,2999.9,0.001]
[1764294771689,1.15659411,3000.0,2999.9,0.001]
[1764294772009,1.63999411,3000.0,2999.9,0.001]
[1764294772202,2.15318535,3000.0,2999.9,0.001]
[1764294772394,2.85763537,3000.0,2999.9,0.001]
[1764294773295,3.26313937,3000.0,2999.9,0.001]
[1764294773498,7.50395999,3000.0,2999.9,0.001]
[1764294773711,10.83729332,3000.0,2999.9,0.001]
[1764294773911,13.93329232,3000.0,2999.9,0.001]
[1764294774118,10.50629332,3000.0,2999.9,0.001]
[1764294774413,10.1589707,3000.0,2999.9,0.001]
[1764294774790,6.4082727,3000.0,2999.9,0.001]
[1764294774993,6.84894861,3000.0,2999.9,0.001]
[1764294775184,6.8074727,3000.0,2999.9,0.001]
[1764294775385,6.1972727,3000.0,2999.9,0.001]
[1764294775585,1.47212593,3000.0,2999.9,0.4619]
[1764294775792,1.17232004,3000.0,2999.9,0.4619]
[1764294776007,4.50565337,3000.0,2999.9,0.4619]
[1764294776409,4.71665337,3000.0,2999.9,0.4619]
[1764294776989,4.50565337,3000.0,2999.9,0.4619]
[1764294777312,5.04765337,3000.0,2999.9,0.4619]
[1764294777519,4.71665337,3000.0,2999.9,0.4619]
[1764294777680,5.35374001,3000.0,2999.9,0.4619]
[1764294777888,5.46474001,3000.0,2999.9,0.9211]
[1764294778234,11.72174001,3000.0,2999.9,0.9211]
[1764294778439,11.6802641,3000.0,2999.9,0.9211]
[1764294778584,11.7802641,3000.0,2999.9,0.4619]
[1764294778990,7.59884413,3000.0,2999.9,0.9211]
[1764294779191,7.28784413,3000.0,2999.9,0.9211]
[1764294779515,7.49884413,3000.0,2999.9,0.9211]
[1764294780093,7.49884413,3000.0,2999.9,0.4619]
[1764294780930,7.49884413,3000.0,2999.9,0.9211]
[1764294781132,10.83217746,3000.0,2999.9,0.4619]
[1764294781543,12.65480784,3000.0,2999.9,0.001]
[1764294781710,11.22827746,3000.0,2999.9,0.001]
[1764294781908,7.49884413,3000.0,2999.9,0.4619]
[1764294782330,7.59884413,3000.0,2999.9,0.4619]
[1764294782807,7.49884413,3000.0,2999.9,0.4619]
[1764294783026,10.83217746,3000.0,2999.9,0.4619]
[1764294783205,10.62117746,3000.0,2999.9,0.4619]
[1764294783407,11.32827746,3000.0,2999.9,0.001]
[1764294785339,7.99494413,3000.0,2999.9,0.001]
[1764294785518,10.93217746,3000.0,2999.9,0.001]
[1764294786038,10.93217746,3000.0,2999.9,0.4619]
[1764294786708,7.59884413,3000.0,2999.9,0.4619]
[1764294786910,10.72117746,3000.0,2999.9,0.4619]
[1764294787139,10.93217746,3000.0,2999.9,0.4619]
[1764294787434,11.64157871,3000.0,2999.9,0.4619]
[1764294787844,7.99724538,3000.0,2999.9,0.9211]
[1764294788048,7.49884413,3000.0,2999.9,0.9211]
[1764294788830,6.56225002,3000.0,2999.9,0.9211]
[1764294789042,6.56225002,3000.0,2999.9,4.68000927]
[1764294789345,0.30525002,3000.0,2999.9,4.68000927]
[1764294790951,0.30815298,3000.0,2999.9,4.68000927]
[1764294791650,0.30815298,3000.0,2999.9,4.29254444]
[1764294792649,0.30815298,3000.0,2999.9,0.9591]
[1764294792954,11.50668042,3000.0,2999.9,0.001]
[1764294793255,12.64708501,3000.0,2999.9,0.001]
[1764294793623,20.53242117,3000.0,2999.9,0.001]
[1764294793822,14.27542117,3000.0,2999.9,0.001]
[1764294794327,14.27542117,3000.0,2999.6,0.001]
[1764294794328,1.13109811,2999.9,2999.6,0.001]
[1764294794530,28.85545035,2999.7,2999.6,0.001]
[1764294794857,33.20667462,2999.7,2999.6,0.001]
[1764294795030,33.69637462,2999.7,2999.6,0.001]
[1764294795351,37.05829762,2999.7,2999.6,0.001]
[1764294795859,31.43324762,2999.7,2999.6,0.001]
[1764294796221,29.66283038,2999.7,2999.6,0.001]
[1764294796454,7.774091,2999.7,2999.6,0.001]
[1764294796668,6.80452238,2999.7,2999.6,0.001]
[1764294796834,8.82184215,2999.7,2999.6,0.001]
[1764294797035,8.61084215,2999.7,2999.6,0.001]
[1764294797358,6.1291884,2999.7,2999.6,0.001]
[1764294797657,6.89625842,2999.7,2999.6,0.001]
[1764294797844,6.52378251,2999.7,2999.6,0.001]
[1764294798022,6.56525842,2999.7,2999.6,0.001]
[1764294798853,6.46525842,2999.7,2999.6,0.001]
[1764294799033,1.88462759,2999.7,2999.6,0.001]
[1764294799233,1.74315168,2999.7,2999.6,0.4728]
[1764294799437,0.51915298,2999.7,2999.6,0.9719]
[1764294799835,7.29074709,2999.7,2999.6,0.9719]
[1764294800038,7.50174709,2999.7,2999.6,0.9719]
[1764294800753,7.50174709,2999.7,2999.6,0.4728]
[1764294800926,7.29074709,2999.7,2999.6,0.4728]
[1764294801128,7.50174709,2999.7,2999.6,0.4728]
[1764294801432,7.50174709,2999.7,2999.6,0.001]
[1764294801433,11.24131379,2999.7,2999.6,0.001]
[1764294801641,11.34131379,2999.7,2999.6,0.001]
[1764294802026,10.93541379,2999.7,2999.6,0.001]
[1764294802471,7.60174709,2999.7,2999.6,0.4728]
[1764294802809,7.60174709,2999.7,2999.6,0.001]
[1764294802810,11.67231379,2999.7,2999.6,0.001]
[1764294803094,8.33864709,2999.7,2999.6,0.001]
[1764294803297,7.60174709,2999.7,2999.6,0.001]
[1764294803455,7.29074709,2999.7,2999.6,0.9719]
[1764294803659,7.50174709,2999.7,2999.6,0.9719]
[1764294803889,7.50174709,2999.7,2999.6,0.001]
[1764294804084,7.50174709,2999.7,2999.6,0.4728]
[1764294804456,11.05681379,2999.7,2999.6,0.001]
[1764294804658,13.85185488,2999.7,2999.6,0.001]
[1764294805484,7.38709811,2999.6,2999.5,0.001]
[1764294805694,8.20940947,2999.6,2999.5,0.001]
[1764294805888,7.28974709,2999.6,2999.5,0.4728]
[1764294806059,7.28974709,2999.6,2999.5,0.9719]
[1764294806259,7.50074709,2999.6,2999.5,0.9719]
[1764294807190,7.28974709,2999.6,2999.5,0.9719]
[1764294807406,7.50074709,2999.6,2999.5,0.9719]
[1764294807776,7.28974709,2999.6,2999.5,0.4728]
[1764294808103,7.50074709,2999.6,2999.5,0.4728]
[1764294808758,0.30815298,2999.6,2999.5,4.30578898]
[1764294808958,1.36696862,3000.9,2999.5,4.30578898]
[1764294808959,0.34962889,3000.5,2999.5,11.40414584]
[1764294809158,0.51915298,3000.4,2999.6,0.4991]
[1764294809386,0.34962889,3000.3,2999.6,0.4991]
[1764294809563,0.30815298,3000.2,2999.6,0.4991]
[1764294809888,0.30815298,3000.2,2999.7,0.75984569]
[1764294809889,0.30815298,3000.1,2999.7,0.75984569]
[1764294810189,0.51915298,3000.0,2999.6,0.4991]
[1764294810387,0.30815298,2999.9,2999.6,0.4991]
[1764294810555,0.211,3000.0,2999.9,0.4718]
[1764294810759,0.51855317,3000.0,2999.9,0.4718]
[1764294812308,0.1,2999.9,2999.5,0.001]
[1764294812472,0.34902908,2999.8,2999.5,0.001]
[1764294812669,0.30750432,2999.7,2999.5,0.001]
[1764294812990,0.211,2999.6,2999.5,0.001]
[1764294813162,0.51849118,2999.6,2999.5,0.001]
[1764294813557,0.61849118,2999.6,2999.5,0.4728]
[1764294813764,0.211,2999.7,2999.5,4.30578898]
[1764294813976,0.211,2999.7,2999.6,1.73487069]
[1764294815268,0.211,2999.7,2999.6,5.06864852]
[1764294816596,0.30753143,3000.1,2999.7,10.0010001]
[1764294816892,1.18256862,3001.3,3000.5,0.1924]
[1764294816893,0.211,3000.9,3000.5,0.1924]
[1764294817097,0.30759585,3000.8,3000.5,0.1924]
[1764294817393,0.30759585,3000.7,3000.5,4.02424116]
[1764294817580,0.30752863,3000.8,3000.5,4.02424116]
[1764294817769,0.30750886,3000.7,3000.6,0.4991]
[1764294817964,0.4917,3001.2,3000.6,0.4991]
[1764294817965,0.30750886,3000.8,3000.6,0.9709]
[1764294818164,0.30737676,3001.1,3000.8,0.4718]
[1764294818398,0.51837676,3001.0,3000.8,0.4718]
[1764294818692,0.30737676,3000.9,3000.5,6.85791903]
[1764294819003,0.211,3001.0,3000.9,0.4718]
[1764294819410,0.211,3001.0,3000.9,0.9709]
[1764294819779,0.211,3001.0,3000.9,0.4718]
[1764294819982,0.51829807,3001.0,3000.9,0.4718]
[1764294820182,0.211,3001.0,3000.9,0.4718]
[1764294823383,0.211,3001.0,3000.9,0.9651]
[1764294825311,0.211,3001.0,3000.5,0.1924]
[1764294825515,0.211,3001.0,3000.9,0.4782]
[1764294831614,0.6489,3001.0,3000.5,4.01839502]
[1764294831823,3.98113739,3001.0,3000.5,0.6857]
[1764294832005,0.6489,3001.0,3000.5,3.52514301]
[1764294832187,6.467,3001.0,3000.9,0.4782]
[1764294833219,10.23732259,3001.0,3000.6,0.4933]
[1764294833395,0.96056785,3000.9,3000.3,3.51564735]
[1764294833599,0.6533,3000.9,3000.3,3.51564735]
[1764294834023,0.6533,3000.9,3000.3,4.00894735]
[1764294834226,0.6533,3000.9,3000.3,7.34194738]
[1764294834720,0.1939,3000.9,3000.3,7.34194738]
[1764294834929,0.50123424,3000.9,3000.3,7.34194738]
[1764294835239,0.30733424,3000.8,3000.3,7.34194738]
[1764294835605,0.30733424,3000.8,3000.4,0.4933]
[1764294836110,0.1939,3000.9,3000.5,3.33277787]
[1764294836312,0.30784064,3000.8,3000.5,3.33277787]
[1764294836504,6.467,3001.0,3000.5,3.33277787]
[1764294836693,0.30784195,3000.9,3000.7,0.4782]